bitfinex-derivatives/quotes_SOLF0:USTF0_20250426
["timestamp","ask_amount","ask_price","bid_price","bid_amount"]
[1745671145833,32.23045454,148.43,148.39,37.82195454]
[1745671146535,6.7348,148.42,148.39,37.82195454]
[1745671147433,32.23045454,148.43,148.39,37.82195454]
[1745671147633,26.9645,148.43,148.4,5.26595454]
[1745671147934,26.9645,148.43,148.4,12.00165454]
[1745671149334,26.9645,148.43,148.4,5.26595454]
[1745671149532,26.9645,148.43,148.39,37.82185454]
[1745671150534,6.7348,148.42,148.39,37.82185454]
[1745671153136,6.7352,148.41,148.39,31.08595454]
[1745671153434,20.23,148.43,148.39,31.08595454]
[1745671153635,5.26595454,148.42,148.39,25.82]
[1745671153935,6.7352,148.41,148.39,32.5561]
[1745671154238,5.26595454,148.42,148.39,32.5561]
[1745671154637,5.26595454,148.42,148.39,25.82]
[1745671155038,6.7352,148.41,148.39,25.82]
[1745671155537,5.26595454,148.41,148.37,12.00285454]
[1745671155839,6.7357,148.4,148.37,12.00285454]
[1745671156137,6.7357,148.4,148.38,6.7365]
[1745671156439,6.7357,148.4,148.37,5.26595454]
[1745671156634,6.7357,148.4,148.37,12.00275454]
[1745671157543,5.26595454,148.4,148.36,37.78305454]
[1745671157742,5.26595454,148.39,148.36,25.78]
[1745671158141,12.00235454,148.39,148.36,25.78]
[1745671158338,5.26595454,148.4,148.36,31.04595454]
[1745671158641,5.26595454,148.4,148.37,6.7369]
[1745671159142,5.26595454,148.4,148.36,31.04595454]
[1745671159342,5.26595454,148.4,148.37,6.7369]
[1745671160444,5.26595454,148.4,148.38,6.7366]
[1745671161144,5.26595454,148.4,148.37,6.7368]
[1745671161745,12.00165454,148.4,148.37,6.7368]
[1745671162248,12.00165454,148.4,148.36,37.78325454]
[1745671163846,6.7363,148.39,148.36,37.78325454]
[1745671165849,12.00225454,148.39,148.36,25.78]
[1745671166043,12.00225454,148.39,148.35,12.00375454]
[1745671166852,6.7366,148.38,148.35,6.7378]
[1745671167154,5.26595454,148.38,148.34,5.26595454]
[1745671167347,5.26595454,148.39,148.33,25.8]
[1745671167548,5.26595454,148.38,148.34,5.26595454]
[1745671168451,6.7374,148.37,148.34,12.00405454]
[1745671168752,5.26595454,148.37,148.33,25.8]
[1745671169046,5.26595454,148.36,148.33,25.8]
[1745671169245,5.26595454,148.36,148.31,5.26595454]
[1745671169639,12.00355454,148.36,148.31,5.26595454]
[1745671169841,12.00355454,148.36,148.32,6.7391]
[1745671170350,12.00355454,148.36,148.33,6.7388]
[1745671170551,6.7376,148.36,148.33,12.00475454]
[1745671171347,6.7376,148.36,148.33,5.26595454]
[1745671171547,6.7376,148.36,148.32,6.7392]
[1745671171548,6.7376,148.36,148.32,12.00515454]
[1745671172053,12.00355454,148.36,148.32,6.7392]
[1745671172250,6.7382,148.35,148.31,6.7397]
[1745671172554,6.7382,148.35,148.31,12.00565454]
[1745671173754,6.7384,148.34,148.31,12.00565454]
[1745671173952,5.26595454,148.36,148.31,12.00565454]
[1745671174752,6.7382,148.35,148.31,12.00565454]
[1745671174952,6.7382,148.35,148.32,12.00515454]
[1745671176254,6.7384,148.34,148.32,5.26595454]
[1745671176453,6.7384,148.34,148.31,5.26595454]
[1745671177954,12.00395454,148.35,148.31,12.00535454]
[1745671178156,6.738,148.35,148.31,12.00535454]
[1745671178753,6.7385,148.34,148.31,12.00535454]
[1745671178949,6.7385,148.34,148.31,5.26595454]
[1745671179154,5.26595454,148.36,148.31,5.26595454]
[1745671179348,6.7381,148.35,148.31,5.26595454]
[1745671179554,6.7381,148.35,148.31,12.00545454]
[1745671180154,6.7381,148.35,148.32,6.7392]
[1745671181652,12.00355454,148.36,148.33,6.7387]
[1745671181853,4.1122,148.37,148.33,5.26595454]
[1745671182161,10.8495,148.37,148.33,5.26595454]
[1745671182455,10.8495,148.37,148.34,5.26595454]
[1745671182456,4.1122,148.37,148.34,5.26595454]
[1745671183053,4.1122,148.37,148.35,6.7377]
[1745671186657,6.7366,148.38,148.35,6.7377]
[1745671186950,12.00225454,148.39,148.35,6.7377]
[1745671187157,12.00225454,148.39,148.35,12.00365454]
[1745671188459,6.7363,148.39,148.36,6.7372]
[1745671189956,12.00175454,148.4,148.36,6.7372]
[1745671190157,12.00175454,148.4,148.37,6.737]
[1745671190862,6.7361,148.39,148.36,12.00325454]
[1745671191654,5.26595454,148.4,148.36,5.26595454]
[1745671191860,35.14045454,148.41,148.36,5.26595454]
[1745671192157,9.38045454,148.41,148.36,5.26595454]
[1745671192554,9.38045454,148.41,148.37,5.26595454]
[1745671192760,4.1145,148.41,148.37,5.26595454]
[1745671193255,10.8501,148.41,148.38,6.7362]
[1745671195557,4.1145,148.41,148.39,6.7361]
[1745671195763,6.7349,148.42,148.39,6.7361]
[1745671195963,6.7349,148.42,148.38,5.26595454]
[1745671196163,6.7349,148.42,148.38,12.00235454]
[1745671197064,6.7354,148.41,148.38,12.00235454]
[1745671198068,6.7354,148.41,148.38,6.7364]
[1745671198567,6.735,148.42,148.38,12.00235454]
[1745671199166,6.7353,148.41,148.38,12.00235454]
[1745671199869,6.7353,148.41,148.38,5.26595454]
[1745671200772,6.7353,148.41,148.37,12.00275454]
[1745671201171,6.736,148.4,148.37,5.26595454]
[1745671201472,6.736,148.4,148.36,12.00325454]
[1745671201965,12.00125454,148.41,148.37,6.7369]
[1745671202166,6.7353,148.41,148.37,12.00285454]
[1745671202468,5.26595454,148.43,148.38,5.26595454]
[1745671203272,6.7349,148.42,148.39,6.736]
[1745671203573,6.7349,148.42,148.38,5.26595454]
[1745671203773,6.7349,148.42,148.38,12.00215454]
[1745671205172,5.26595454,148.43,148.39,12.00205454]
[1745671205173,6.7344,148.43,148.39,12.00205454]
[1745671205369,6.7344,148.43,148.4,5.26595454]
[1745671205569,11.38785454,148.45,148.4,5.26595454]
[1745671205771,5.26595454,148.43,148.38,30.98595454]
[1745671206070,5.26595454,148.42,148.38,25.72]
[1745671206475,6.7353,148.41,148.38,25.72]
[1745671206971,5.26595454,148.42,148.38,25.72]
[1745671207172,6.7353,148.41,148.38,25.72]
[1745671207770,6.7357,148.4,148.38,25.72]
[1745671208275,6.7366,148.38,148.35,37.72355454]
[1745671208773,9.23675454,148.4,148.36,6.7375]
[1745671209074,9.23675454,148.4,148.36,12.00345454]
[1745671209976,6.7364,148.39,148.36,12.00345454]
[1745671213581,10.7066,148.4,148.36,12.00345454]
[1745671213880,6.7358,148.4,148.37,5.26595454]
[1745671214774,6.7358,148.4,148.37,12.00285454]
[1745671215181,6.7358,148.4,148.37,5.26595454]
[1745671215576,6.7362,148.39,148.37,5.26595454]
[1745671216784,5.26595454,148.41,148.36,6.7373]
[1745671217085,5.26595454,148.41,148.35,37.72365454]
[1745671217279,6.7369,148.38,148.35,37.72365454]
[1745671217581,5.26595454,148.37,148.32,6.7393]
[1745671217774,5.26595454,148.37,148.33,5.26595454]
[1745671218172,5.26595454,148.37,148.33,12.00445454]
[1745671218375,25.72,148.43,148.35,5.26595454]
[1745671218581,5.26595454,148.41,148.35,5.26595454]
[1745671218781,5.26595454,148.41,148.36,6.7372]
[1745671218974,5.26595454,148.41,148.35,5.26595454]
[1745671219583,6.7363,148.39,148.36,6.7375]
[1745671220381,6.7363,148.39,148.36,12.00345454]
[1745671221084,6.7358,148.4,148.37,6.737]
[1745671224386,6.7353,148.41,148.38,6.7364]
[1745671225188,30.98595454,148.43,148.39,5.26595454]
[1745671225491,9.43225454,148.44,148.4,5.26595454]
[1745671226085,6.7346,148.43,148.4,12.00155454]
[1745671226288,6.7346,148.43,148.41,5.26595454]
[1745671226689,6.7348,148.42,148.41,5.26595454]
[1745671226888,6.7348,148.42,148.4,5.26595454]
[1745671229189,6.7348,148.42,148.39,12.00195454]
[1745671229889,6.7348,148.42,148.4,5.26595454]
[1745671230685,6.7352,148.41,148.4,5.26595454]
[1745671230885,9.43225454,148.44,148.4,5.26595454]
[1745671231393,12.00075454,148.42,148.38,5.26595454]
[1745671231789,12.00075454,148.42,148.38,12.00225454]
[1745671233292,5.26595454,148.42,148.37,32.4368]
[1745671233496,5.26595454,148.41,148.37,25.7]
[1745671233696,5.26595454,148.39,148.37,25.7]
[1745671233897,12.00235454,148.39,148.35,12.00365454]
[1745671235996,12.00235454,148.39,148.36,6.7373]
[1745671236197,6.7364,148.39,148.36,6.7373]
[1745671236600,6.7364,148.39,148.35,5.26595454]
[1745671236601,6.7364,148.39,148.35,12.00375454]
[1745671237799,6.7364,148.39,148.36,6.7374]
[1745671238300,6.7359,148.4,148.37,6.737]
[1745671238496,6.7359,148.4,148.37,12.00295454]
[1745671238799,6.7359,148.4,148.37,5.26595454]
[1745671239099,6.7362,148.39,148.36,12.00325454]
[1745671243803,5.26595454,148.4,148.36,5.26595454]
[1745671243804,6.7366,148.38,148.36,5.26595454]
[1745671244005,6.7366,148.38,148.35,12.00375454]
[1745671244206,5.26595454,148.39,148.34,30.96595454]
[1745671244406,5.26595454,148.38,148.34,25.7]
[1745671245402,6.7371,148.37,148.34,32.4382]
[1745671246403,12.00275454,148.38,148.34,32.4382]
[1745671246609,5.26595454,148.38,148.34,32.4382]
[1745671246911,12.00265454,148.38,148.34,32.4382]
[1745671247103,12.00265454,148.38,148.35,6.7379]
[1745671247709,12.00265454,148.38,148.34,32.4384]
[1745671247910,6.7367,148.38,148.35,5.26595454]
[1745671248610,6.737,148.37,148.35,5.26595454]
[1745671249712,6.7367,148.38,148.35,5.26595454]
[1745671250008,6.7367,148.38,148.35,12.00365454]
[1745671250512,12.00225454,148.39,148.35,12.00365454]
[1745671250709,6.7363,148.39,148.36,5.26595454]
[1745671251112,6.7366,148.38,148.36,5.26595454]
[1745671251713,6.7364,148.39,148.36,5.26595454]
[1745671252814,6.7366,148.38,148.36,5.26595454]
[1745671253012,6.7366,148.38,148.35,12.00365454]
[1745671253413,6.7363,148.39,148.35,12.00365454]
[1745671253715,6.7363,148.39,148.35,6.7377]
[1745671254012,20.91,148.38,148.35,12.00365454]
[1745671255114,20.91,148.38,148.36,12.00345454]
[1745671255317,20.91,148.38,148.37,5.26595454]
[1745671255516,20.91,148.38,148.36,12.00345454]
[1745671256715,20.91,148.38,148.37,6.737]
[1745671257010,20.91,148.38,148.37,12.00295454]
[1745671262620,4.1663,148.44,148.37,5.26595454]
[1745671262819,4.1663,148.44,148.41,5.26595454]
[1745671263624,10.9002,148.44,148.41,5.26595454]
[1745671265021,4.1663,148.44,148.42,5.26595454]
[1745671265423,30.92595454,148.47,148.42,5.26595454]
[1745671265822,6.7331,148.46,148.42,12.00035454]
[1745671266118,25.66,148.47,148.43,5.26595454]
[1745671266327,11.39555454,148.49,148.44,5.26595454]
[1745671266825,11.39555454,148.49,148.45,5.26595454]
[1745671268124,11.39555454,148.49,148.44,5.26595454]
[1745671268323,5.26595454,148.48,148.43,5.26595454]
[1745671269026,6.7329,148.47,148.43,11.99995454]
[1745671269924,6.7329,148.47,148.44,6.7338]
[1745671270124,6.7322,148.48,148.44,6.7338]
[1745671270327,11.39555454,148.49,148.44,5.26595454]
[1745671270519,6.1296,148.49,148.45,5.26595454]
[1745671270724,4.0427,148.49,148.47,5.26595454]
[1745671270923,5.26595454,148.51,148.47,5.26595454]
[1745671271117,5.26595454,148.51,148.47,11.99815454]
[1745671271424,6.7308,148.51,148.47,5.26595454]
[1745671271728,6.7308,148.51,148.47,11.99805454]
[1745671273024,6.7313,148.5,148.47,5.26595454]
[1745671273223,5.26595454,148.48,148.46,25.66]
[1745671273423,5.26595454,148.47,148.43,30.92595454]
[1745671273729,5.26595454,148.47,148.43,25.66]
[1745671274223,6.733,148.46,148.43,32.3942]
[1745671274834,6.7327,148.47,148.44,5.26595454]
[1745671276930,6.7329,148.46,148.44,5.26595454]
[1745671278833,5.26595454,148.47,148.44,5.26595454]
[1745671279034,5.26595454,148.48,148.44,5.26595454]
[1745671279236,6.7326,148.47,148.44,5.26595454]
[1745671280138,11.99815454,148.48,148.44,11.99945454]
[1745671280326,11.99815454,148.48,148.44,5.26595454]
[1745671281035,11.99815454,148.48,148.44,11.99965454]
[1745671281339,6.7326,148.47,148.44,5.26595454]
[1745671281537,6.7326,148.47,148.43,30.92595454]
[1745671281733,5.26595454,148.47,148.43,25.66]
[1745671281931,5.26595454,148.46,148.43,25.66]
[1745671282135,5.26595454,148.45,148.41,5.26595454]
[1745671282538,6.7338,148.44,148.41,5.26595454]
[1745671284541,11.99945454,148.45,148.41,5.26595454]
[1745671284743,11.99945454,148.45,148.41,12.00085454]
[1745671285137,6.7339,148.44,148.41,5.26595454]
[1745671285341,6.7339,148.44,148.4,25.64]
[1745671285342,6.7339,148.44,148.4,37.64155454]
[1745671285543,11.99985454,148.44,148.4,37.64155454]
[1745671286344,6.7343,148.43,148.4,30.90595454]
[1745671286534,6.7343,148.43,148.4,25.64]
[1745671288243,12.00025454,148.43,148.4,25.64]
[1745671288444,5.26595454,148.41,148.37,37.66295454]
[1745671288945,12.00145454,148.41,148.37,37.66295454]
[1745671289242,6.7355,148.41,148.37,37.66295454]
[1745671289943,12.00085454,148.42,148.38,6.7363]
[1745671290143,12.00085454,148.42,148.38,5.26595454]
[1745671290345,5.26595454,148.44,148.4,5.26595454]
[1745671290645,11.99995454,148.44,148.4,12.00125454]
[1745671290950,11.99995454,148.44,148.4,5.26595454]
[1745671291244,6.7331,148.46,148.42,5.26595454]
[1745671291445,5.26595454,148.46,148.41,5.26595454]
[1745671291845,6.7334,148.45,148.42,6.7347]
[1745671294647,5.26595454,148.46,148.43,6.7342]
[1745671294850,27.7244,148.48,148.42,5.26595454]
[1745671294851,5.26595454,148.47,148.42,5.26595454]
[1745671295044,5.26595454,148.47,148.43,5.26595454]
[1745671296248,11.99855454,148.47,148.44,6.7336]
[1745671296843,5.26595454,148.47,148.45,6.7334]
[1745671297147,14.10255454,148.48,148.45,6.7334]
[1745671297546,5.26595454,148.46,148.42,5.26595454]
[1745671298149,6.7335,148.45,148.42,12.00065454]
[1745671298350,11.99945454,148.45,148.42,6.7347]
[1745671300657,6.7339,148.44,148.41,37.62105454]
[1745671300953,5.26595454,148.44,148.41,25.62]
[1745671301352,12.00005454,148.44,148.41,25.62]
[1745671302350,12.00005454,148.44,148.41,32.3549]
[1745671303055,12.00005454,148.44,148.41,25.62]
[1745671303354,6.7343,148.43,148.41,25.62]
[1745671305859,11.99995454,148.44,148.41,32.3551]
[1745671306759,6.7344,148.43,148.41,25.62]
[1745671307260,6.7344,148.43,148.41,32.3552]
[1745671307559,11.99995454,148.44,148.41,32.3552]
[1745671308460,6.7344,148.43,148.41,25.62]
[1745671316762,5.26595454,148.44,148.41,25.62]
[1745671317066,12.00005454,148.44,148.41,25.62]
[1745671319068,6.7341,148.44,148.41,25.62]
[1745671319570,6.7344,148.43,148.41,25.62]
[1745671320073,6.7348,148.42,148.41,25.62]
[1745671320971,12.00035454,148.43,148.41,25.62]
[1745671324172,6.7348,148.42,148.41,25.62]
[1745671325374,12.00045454,148.43,148.41,25.62]
[1745671326776,6.7348,148.42,148.41,25.62]
[1745671327476,12.00045454,148.43,148.41,25.62]
[1745671329873,5.26595454,148.43,148.41,25.62]
[1745671330077,30.88595454,148.47,148.41,30.88595454]
[1745671330273,5.26595454,148.47,148.41,30.88595454]
[1745671331279,6.7335,148.45,148.42,6.7348]
[1745671331575,5.26595454,148.47,148.41,30.88595454]
[1745671331776,5.26595454,148.44,148.41,25.62]
[1745671332377,5.26595454,148.43,148.41,25.62]
[1745671332977,12.00055454,148.43,148.41,25.62]
[1745671334679,5.26595454,148.43,148.41,32.3552]
[1745671335380,6.7332,148.46,148.43,6.7343]
[1745671335876,11.99915454,148.46,148.42,12.00055454]
[1745671336378,11.99915454,148.46,148.42,6.7346]
[1745671337378,27.35915454,148.46,148.42,6.7346]
[1745671338573,11.99945454,148.45,148.41,30.88595454]
[1745671338779,5.26595454,148.42,148.41,25.62]
[1745671339078,5.26595454,148.43,148.41,25.62]
[1745671339877,12.00045454,148.43,148.41,25.62]
[1745671340379,6.7348,148.42,148.41,25.62]
[1745671340579,6.7348,148.42,148.39,12.00205454]
[1745671342379,12.00035454,148.43,148.39,12.00205454]
[1745671342680,6.7344,148.43,148.4,6.7356]
[1745671342979,6.7344,148.43,148.4,12.00155454]
[1745671343281,11.99995454,148.44,148.4,12.00155454]
[1745671343482,6.734,148.44,148.41,6.7351]
[1745671344482,6.7343,148.43,148.4,12.00145454]
[1745671344879,5.26595454,148.45,148.4,12.00145454]
[1745671345077,11.99995454,148.44,148.4,12.00145454]
[1745671345683,11.99995454,148.44,148.41,6.7351]
[1745671347384,5.26595454,148.44,148.41,6.7351]
[1745671348684,11.99985454,148.44,148.41,6.7351]
[1745671348985,6.7339,148.44,148.41,6.7351]
[1745671351389,5.26595454,148.42,148.39,25.58]
[1745671351688,5.26595454,148.43,148.39,25.58]
[1745671351883,6.7348,148.42,148.39,32.3158]
[1745671352382,5.26595454,148.43,148.39,25.58]
[1745671352586,5.26595454,148.42,148.39,25.58]
[1745671352886,5.26595454,148.41,148.37,5.26595454]
[1745671353086,5.26595454,148.41,148.37,6.7367]
[1745671354089,12.00135454,148.41,148.37,6.7367]
[1745671354487,12.00135454,148.41,148.38,6.7366]
[1745671354787,6.7354,148.41,148.38,6.7366]
[1745671356991,6.7362,148.39,148.36,37.56335454]
[1745671357187,5.26595454,148.4,148.36,25.56]
[1745671358490,6.7365,148.39,148.36,32.2974]
[1745671358991,5.26595454,148.41,148.37,5.26595454]
[1745671359192,5.26595454,148.42,148.37,5.26595454]
[1745671359788,6.7356,148.41,148.38,6.7366]
[1745671360093,12.00155454,148.41,148.38,6.7366]
[1745671360493,6.7357,148.4,148.38,6.7366]
[1745671360791,5.26595454,148.41,148.38,6.7366]
[1745671360991,5.26595454,148.42,148.38,6.7366]
[1745671361693,6.7355,148.41,148.38,6.7366]
[1745671362892,12.00085454,148.42,148.39,6.7361]
[1745671363192,5.26595454,148.42,148.39,6.7361]
[1745671364293,6.7352,148.41,148.38,6.7364]
[1745671364996,12.00085454,148.42,148.39,6.7361]
[1745671365193,6.7349,148.42,148.39,6.7361]
[1745671365697,6.7353,148.41,148.39,6.7361]
[1745671365993,6.7353,148.41,148.38,12.00235454]
[1745671366900,6.7353,148.41,148.38,6.7364]
[1745671370493,5.26595454,148.42,148.37,5.26595454]
[1745671370798,6.7349,148.42,148.39,6.736]
[1745671373597,7.32595454,148.43,148.39,5.26595454]
[1745671373598,6.7344,148.43,148.39,5.26595454]
[1745671374199,6.7344,148.43,148.4,6.7356]
[1745671375802,4.1338,148.44,148.41,12.00085454]
[1745671376099,5.26595454,148.45,148.41,12.00085454]
[1745671376499,6.7341,148.44,148.41,12.00085454]
[1745671376701,5.26595454,148.46,148.42,12.00065454]
[1745671377098,5.26595454,148.48,148.43,5.26595454]
[1745671377401,34.87185454,148.49,148.44,5.26595454]
[1745671377604,5.26595454,148.48,148.43,5.26595454]
[1745671378004,6.7328,148.47,148.44,6.7337]
[1745671380407,11.99815454,148.48,148.44,6.7337]
[1745671381706,6.7326,148.47,148.44,6.7337]
[1745671381907,5.26595454,148.45,148.4,30.82595454]
[1745671382208,5.26595454,148.44,148.4,30.82595454]
[1745671382406,5.26595454,148.45,148.4,30.82595454]
[1745671382703,5.26595454,148.46,148.41,5.26595454]
[1745671383005,5.26595454,148.46,148.42,5.26595454]
[1745671383207,6.7337,148.45,148.42,5.26595454]
[1745671384406,6.7329,148.46,148.43,5.26595454]
[1745671384706,6.7329,148.46,148.43,11.99995454]
[1745671386612,6.7327,148.47,148.44,11.99955454]
[1745671388907,5.26595454,148.48,148.44,11.99955454]
[1745671389107,29.7262,148.49,148.43,12.00005454]
[1745671389108,5.26595454,148.47,148.43,12.00005454]
[1745671389303,5.26595454,148.47,148.43,6.7341]
[1745671389512,5.26595454,148.46,148.43,6.7341]
[1745671389807,5.26595454,148.45,148.41,12.00075454]
[1745671390012,5.26595454,148.44,148.41,12.00075454]
[1745671390507,12.00005454,148.44,148.41,12.00075454]
[1745671391011,5.26595454,148.44,148.4,30.82595454]
[1745671391212,5.26595454,148.44,148.4,25.56]
[1745671392612,6.7344,148.43,148.4,32.2954]
[1745671393211,6.7344,148.43,148.4,37.56135454]
[1745671394415,11.99995454,148.44,148.41,6.7352]
[1745671394713,6.734,148.44,148.41,6.7352]
[1745671394912,6.7336,148.45,148.42,6.7347]
[1745671395311,29.7262,148.49,148.4,25.56]
[1745671395624,6.7358,148.4,148.36,32.2573]
[1745671395808,5.26595454,148.39,148.36,32.2573]
[1745671396009,6.7364,148.39,148.36,25.52]
[1745671397718,6.7364,148.39,148.36,32.2575]
[1745671398018,12.00175454,148.4,148.36,32.2575]
[1745671400622,5.26595454,148.38,148.36,25.52]
[1745671400918,5.26595454,148.38,148.34,5.26595454]
[1745671401217,6.7373,148.37,148.34,5.26595454]
[1745671401617,5.26595454,148.39,148.34,5.26595454]
[1745671401817,5.26595454,148.39,148.35,5.26595454]
[1745671402122,12.00235454,148.39,148.35,5.26595454]
[1745671402822,5.26595454,148.39,148.34,12.00385454]
[1745671403122,5.26595454,148.38,148.34,5.26595454]
[1745671403318,6.1215,148.43,148.33,32.2787]
[1745671403319,5.26595454,148.37,148.33,30.80595454]
[1745671403621,6.7375,148.36,148.33,30.80595454]
[1745671403916,12.00325454,148.37,148.33,37.54475454]
[1745671404222,5.26595454,148.37,148.33,37.54475454]
[1745671405321,6.7377,148.36,148.34,5.26595454]
[1745671405821,24.8977,148.36,148.34,5.26595454]
[1745671406022,18.16,148.36,148.35,5.26595454]
[1745671408319,24.8977,148.36,148.34,5.26595454]
[1745671408723,18.16,148.36,148.34,5.26595454]
[1745671411920,18.16,148.36,148.34,12.00405454]
[1745671412224,18.16,148.36,148.35,5.26595454]
[1745671412624,18.16,148.36,148.35,12.00385454]
[1745671413430,6.7354,148.41,148.38,6.7365]
[1745671413624,6.7354,148.41,148.39,5.26595454]
[1745671414432,6.7357,148.4,148.38,5.26595454]
[1745671416228,6.7354,148.41,148.38,5.26595454]
[1745671418628,5.26595454,148.42,148.38,5.26595454]
[1745671419229,6.7361,148.41,148.38,5.26595454]
[1745671420430,5.26595454,148.45,148.4,5.26595454]
[1745671420729,5.26595454,148.45,148.41,5.26595454]
[1745671420930,6.7347,148.44,148.41,5.26595454]
[1745671423230,6.7351,148.43,148.41,5.26595454]
[1745671424435,6.7354,148.42,148.39,12.00255454]
[1745671426534,6.7352,148.43,148.4,12.00225454]
[1745671426938,7.17365454,148.44,148.4,5.26595454]
[1745671428238,6.7355,148.42,148.4,5.26595454]
[1745671431443,6.7352,148.43,148.4,12.00215454]
[1745671431636,1.9077,148.44,148.41,5.26595454]
[1745671432540,6.7352,148.43,148.41,5.26595454]
[1745671432939,1.9077,148.44,148.41,5.26595454]
[1745671433139,8.6423,148.44,148.41,12.00155454]
[1745671433536,6.735,148.43,148.41,12.00155454]
[1745671433743,6.735,148.43,148.41,5.26595454]
[1745671435439,6.7354,148.42,148.41,5.26595454]
[1745671436347,6.7352,148.43,148.41,5.26595454]
[1745671437242,6.7354,148.42,148.41,5.26595454]
[1745671437444,5.26595454,148.43,148.39,5.26595454]
[1745671438045,6.7362,148.41,148.39,5.26595454]
[1745671438548,6.7363,148.4,148.37,32.2575]
[1745671438748,5.26595454,148.43,148.37,32.2575]
[1745671438749,5.26595454,148.43,148.38,5.26595454]
[1745671438947,5.26595454,148.41,148.37,25.52]
[1745671439147,6.7366,148.4,148.37,25.52]
[1745671439844,12.00205454,148.41,148.37,37.52355454]
[1745671440147,6.7361,148.41,148.37,37.52355454]
[1745671440850,6.7361,148.41,148.38,6.7371]
[1745671441744,6.7357,148.42,148.39,12.00275454]
[1745671441946,7.18745454,148.43,148.39,5.26595454]
[1745671442251,6.7355,148.42,148.38,5.26595454]
[1745671442952,6.7359,148.41,148.38,12.00305454]
[1745671444152,6.7356,148.42,148.39,6.7368]
[1745671444350,6.7356,148.42,148.38,5.26595454]
[1745671444949,6.736,148.41,148.38,12.00305454]
[1745671445753,6.736,148.41,148.38,5.26595454]
[1745671446154,6.7366,148.4,148.37,30.78595454]
[1745671447250,12.00205454,148.41,148.37,37.52335454]
[1745671447453,6.7361,148.41,148.38,5.26595454]
[1745671447950,6.7361,148.41,148.38,12.00295454]
[1745671448756,8.7417,148.42,148.38,12.00295454]
[1745671449353,6.7359,148.41,148.38,6.737]
[1745671449563,6.7359,148.41,148.38,12.00295454]
[1745671451263,6.7359,148.41,148.38,5.26595454]
[1745671451761,6.7366,148.4,148.38,5.26595454]
[1745671451958,6.7366,148.4,148.37,37.52345454]
[1745671452255,5.26595454,148.41,148.38,6.7371]
[1745671452461,7.27205454,148.42,148.38,5.26595454]
[1745671452661,2.0061,148.42,148.38,5.26595454]
[1745671453261,8.7416,148.42,148.39,6.7365]
[1745671455065,6.7359,148.41,148.39,6.7365]
[1745671455364,7.27205454,148.42,148.39,6.7365]
[1745671455558,7.27205454,148.42,148.38,12.00285454]
[1745671455756,6.7362,148.41,148.38,12.00285454]
[1745671456267,6.7362,148.41,148.39,6.7368]
[1745671456768,6.7362,148.41,148.38,5.26595454]
[1745671457166,6.7362,148.41,148.38,12.00295454]
[1745671458368,14.00765454,148.42,148.38,12.00295454]
[1745671458667,14.00765454,148.42,148.39,12.00265454]
[1745671458866,8.7417,148.42,148.39,12.00265454]
[1745671459968,6.7359,148.41,148.39,5.26595454]
[1745671460869,6.7359,148.41,148.38,6.7371]
[1745671460870,5.26595454,148.41,148.37,30.78595454]
[1745671461072,5.26595454,148.41,148.37,25.52]
[1745671461277,6.7367,148.4,148.37,25.52]
[1745671462574,6.7367,148.4,148.37,37.52365454]
[1745671462773,6.7361,148.41,148.37,37.52365454]
[1745671462976,6.7361,148.41,148.38,5.26595454]
[1745671463174,8.7416,148.42,148.39,12.00265454]
[1745671467780,8.7416,148.42,148.4,6.7363]
[1745671467976,8.7416,148.42,148.39,5.26595454]
[1745671468281,8.7416,148.42,148.39,12.00235454]
[1745671473383,2.0061,148.42,148.4,6.7361]
[1745671473581,6.7351,148.43,148.4,12.00205454]
[1745671473983,7.17365454,148.44,148.4,5.26595454]
[1745671474280,6.7355,148.42,148.39,12.00245454]
[1745671475687,6.736,148.41,148.39,5.26595454]
[1745671475984,6.736,148.41,148.38,12.00305454]
[1745671478588,6.7356,148.42,148.39,6.7367]
[1745671478789,6.7356,148.42,148.39,12.00265454]
[1745671479402,5.26595454,148.43,148.4,6.7361]
[1745671479582,7.17365454,148.44,148.4,6.7361]
[1745671480792,6.7354,148.43,148.4,6.7361]
[1745671483095,6.7354,148.43,148.39,12.00255454]
[1745671483290,12.00155454,148.42,148.38,5.26595454]
[1745671483491,5.26595454,148.42,148.38,5.26595454]
[1745671483690,5.26595454,148.42,148.37,30.78595454]